Workbook

Sheet 產品銷售報表
B1: 產品銷售報表
B20: 產品

Sheet 歷史資料
B1: 歷史產品價目表與銷售量
B3: 產品識別碼 | C3: 產品名稱 | D3: 價格日期 | E3: 零售單價 | F3: 批發單價* | G3: 銷售數量 (零售) | H3: 銷售數量 (批發) | I3: 總銷售數量 | J3: 總銷售金額
B4: 5 | C4: =IFERROR(IF(tblSales[[#This Row],[產品識別碼]]<>"",VLOOKUP(tblSales[產品識別碼],tblProducts[[產品識別碼]:[名稱]],2,FALSE),""),"未知的產品識別碼") -> 短褲 | D4: 2012-01-01 | E4: 600 | F4: NT$600 | G4: 629 | H4: 1,254 | I4: =tblSales[[#This Row],[銷售數量 (零售)]]+tblSales[[#This Row],[銷售數量 (批發)]] -> 1,883 | J4: =tblSales[[#This Row],[銷售數量 (零售)]]*tblSales[[#This Row],[零售單價]]+tblSales[[#This Row],[銷售數量 (批發)]]*tblSales[[#This Row],[批發單價*]] -> NT$1,129,800
B5: 1 | C5: =IFERROR(IF(tblSales[[#This Row],[產品識別碼]]<>"",VLOOKUP(tblSales[產品識別碼],tblProducts[[產品識別碼]:[名稱]],2,FALSE),""),"未知的產品識別碼") -> 恤衫 | D5: 2012-01-01 | E5: 2640 | F5: NT$1,620 | G5: 734 | H5: 1,427 | I5: =tblSales[[#This Row],[銷售數量 (零售)]]+tblSales[[#This Row],[銷售數量 (批發)]] -> 2,161 | J5: =tblSales[[#This Row],[銷售數量 (零售)]]*tblSales[[#This Row],[零售單價]]+tblSales[[#This Row],[銷售數量 (批發)]]*tblSales[[#This Row],[批發單價*]] -> NT$4,249,500
B6: 2 | C6: =IFERROR(IF(tblSales[[#This Row],[產品識別碼]]<>"",VLOOKUP(tblSales[產品識別碼],tblProducts[[產品識別碼]:[名稱]],2,FALSE),""),"未知的產品識別碼") -> 涼鞋 | D6: 2012-01-01 | E6: 2100 | F6: NT$1,320 | G6: 744 | H6: 1,043 | I6: =tblSales[[#This Row],[銷售數量 (零售)]]+tblSales[[#This Row],[銷售數量 (批發)]] -> 1,787 | J6: =tblSales[[#This Row],[銷售數量 (零售)]]*tblSales[[#This Row],[零售單價]]+tblSales[[#This Row],[銷售數量 (批發)]]*tblSales[[#This Row],[批發單價*]] -> NT$2,939,160
B7: 3 | C7: =IFERROR(IF(tblSales[[#This Row],[產品識別碼]]<>"",VLOOKUP(tblSales[產品識別碼],tblProducts[[產品識別碼]:[名稱]],2,FALSE),""),"未知的產品識別碼") -> 雨傘 | D7: 2012-01-01 | E7: 1890 | F7: NT$1,320 | G7: 681 | H7: 1,523 | I7: =tblSales[[#This Row],[銷售數量 (零售)]]+tblSales[[#This Row],[銷售數量 (批發)]] -> 2,204 | J7: =tblSales[[#This Row],[銷售數量 (零售)]]*tblSales[[#This Row],[零售單價]]+tblSales[[#This Row],[銷售數量 (批發)]]*tblSales[[#This Row],[批發單價*]] -> NT$3,297,450
B8: 4 | C8: =IFERROR(IF(tblSales[[#This Row],[產品識別碼]]<>"",VLOOKUP(tblSales[產品識別碼],tblProducts[[產品識別碼]:[名稱]],2,FALSE),""),"未知的產品識別碼") -> 水壺 | D8: 2012-01-01 | E8: 1050 | F8: NT$810 | G8: 602 | H8: 1,822 | I8: =tblSales[[#This Row],[銷售數量 (零售)]]+tblSales[[#This Row],[銷售數量 (批發)]] -> 2,424 | J8: =tblSales[[#This Row],[銷售數量 (零售)]]*tblSales[[#This Row],[零售單價]]+tblSales[[#This Row],[銷售數量 (批發)]]*tblSales[[#This Row],[批發單價*]] -> NT$2,107,920
B9: 1 | C9: =IFERROR(IF(tblSales[[#This Row],[產品識別碼]]<>"",VLOOKUP(tblSales[產品識別碼],tblProducts[[產品識別碼]:[名稱]],2,FALSE),""),"未知的產品識別碼") -> 恤衫 | D9: 2012-02-01 | E9: 1650 | F9: NT$1,320 | G9: 678 | H9: 1,515 | I9: =tblSales[[#This Row],[銷售數量 (零售)]]+tblSales[[#This Row],[銷售數量 (批發)]] -> 2,193 | J9: =tblSales[[#This Row],[銷售數量 (零售)]]*tblSales[[#This Row],[零售單價]]+tblSales[[#This Row],[銷售數量 (批發)]]*tblSales[[#This Row],[批發單價*]] -> NT$3,118,500
B10: 2 | C10: =IFERROR(IF(tblSales[[#This Row],[產品識別碼]]<>"",VLOOKUP(tblSales[產品識別碼],tblProducts[[產品識別碼]:[名稱]],2,FALSE),""),"未知的產品識別碼") -> 涼鞋 | D10: 2012-02-01 | E10: 2490 | F10: NT$1,620 | G10: 753 | H10: 1,005 | I10: =tblSales[[#This Row],[銷售數量 (零售)]]+tblSales[[#This Row],[銷售數量 (批發)]] -> 1,758 | J10: =tblSales[[#This Row],[銷售數量 (零售)]]*tblSales[[#This Row],[零售單價]]+tblSales[[#This Row],[銷售數量 (批發)]]*tblSales[[#This Row],[批發單價*]] -> NT$3,503,070
B11: 3 | C11: =IFERROR(IF(tblSales[[#This Row],[產品識別碼]]<>"",VLOOKUP(tblSales[產品識別碼],tblProducts[[產品識別碼]:[名稱]],2,FALSE),""),"未知的產品識別碼") -> 雨傘 | D11: 2012-02-01 | E11: 1020 | F11: NT$1,020 | G11: 986 | H11: 1,069 | I11: =tblSales[[#This Row],[銷售數量 (零售)]]+tblSales[[#This Row],[銷售數量 (批發)]] -> 2,055 | J11: =tblSales[[#This Row],[銷售數量 (零售)]]*tblSales[[#This Row],[零售單價]]+tblSales[[#This Row],[銷售數量 (批發)]]*tblSales[[#This Row],[批發單價*]] -> NT$2,096,100
B12: 4 | C12: =IFERROR(IF(tblSales[[#This Row],[產品識別碼]]<>"",VLOOKUP(tblSales[產品識別碼],tblProducts[[產品識別碼]:[名稱]],2,FALSE),""),"未知的產品識別碼") -> 水壺 | D12: 2012-02-01 | E12: 1050 | F12: NT$750 | G12: 848 | H12: 1,211 | I12: =tblSales[[#This Row],[銷售數量 (零售)]]+tblSales[[#This Row],[銷售數量 (批發)]] -> 2,059 | J12: =tblSales[[#This Row],[銷售數量 (零售)]]*tblSales[[#This Row],[零售單價]]+tblSales[[#This Row],[銷售數量 (批發)]]*tblSales[[#This Row],[批發單價*]] -> NT$1,798,650
B13: 5 | C13: =IFERROR(IF(tblSales[[#This Row],[產品識別碼]]<>"",VLOOKUP(tblSales[產品識別碼],tblProducts[[產品識別碼]:[名稱]],2,FALSE),""),"未知的產品識別碼") -> 短褲 | D13: 2012-02-01 | E13: 1230 | F13: NT$1,140 | G13: 980 | H13: 1,330 | I13: =tblSales[[#This Row],[銷售數量 (零售)]]+tblSales[[#This Row],[銷售數量 (批發)]] -> 2,310 | J13: =tblSales[[#This Row],[銷售數量 (零售)]]*tblSales[[#This Row],[零售單價]]+tblSales[[#This Row],[銷售數量 (批發)]]*tblSales[[#This Row],[批發單價*]] -> NT$2,721,600
B14: 1 | C14: =IFERROR(IF(tblSales[[#This Row],[產品識別碼]]<>"",VLOOKUP(tblSales[產品識別碼],tblProducts[[產品識別碼]:[名稱]],2,FALSE),""),"未知的產品識別碼") -> 恤衫 | D14: 2012-02-29 | E14: 810 | F14: NT$540 | G14: 533 | H14: 1,936 | I14: =tblSales[[#This Row],[銷售數量 (零售)]]+tblSales[[#This Row],[銷售數量 (批發)]] -> 2,469 | J14: =tblSales[[#This Row],[銷售數量 (零售)]]*tblSales[[#This Row],[零售單價]]+tblSales[[#This Row],[銷售數量 (批發)]]*tblSales[[#This Row],[批發單價*]] -> NT$1,477,170
B15: 2 | C15: =IFERROR(IF(tblSales[[#This Row],[產品識別碼]]<>"",VLOOKUP(tblSales[產品識別碼],tblProducts[[產品識別碼]:[名稱]],2,FALSE),""),"未知的產品識別碼") -> 涼鞋 | D15: 2012-02-29 | E15: 1140 | F15: NT$840 | G15: 952 | H15: 1,512 | I15: =tblSales[[#This Row],[銷售數量 (零售)]]+tblSales[[#This Row],[銷售數量 (批發)]] -> 2,464 | J15: =tblSales[[#This Row],[銷售數量 (零售)]]*tblSales[[#This Row],[零售單價]]+tblSales[[#This Row],[銷售數量 (批發)]]*tblSales[[#This Row],[批發單價*]] -> NT$2,355,360
B16: 3 | C16: =IFERROR(IF(tblSales[[#This Row],[產品識別碼]]<>"",VLOOKUP(tblSales[產品識別碼],tblProducts[[產品識別碼]:[名稱]],2,FALSE),""),"未知的產品識別碼") -> 雨傘 | D16: 2012-02-29 | E16: 2760 | F16: NT$2,760 | G16: 956 | H16: 1,266 | I16: =tblSales[[#This Row],[銷售數量 (零售)]]+tblSales[[#This Row],[銷售數量 (批發)]] -> 2,222 | J16: =tblSales[[#This Row],[銷售數量 (零售)]]*tblSales[[#This Row],[零售單價]]+tblSales[[#This Row],[銷售數量 (批發)]]*tblSales[[#This Row],[批發單價*]] -> NT$6,132,720
B17: 4 | C17: =IFERROR(IF(tblSales[[#This Row],[產品識別碼]]<>"",VLOOKUP(tblSales[產品識別碼],tblProducts[[產品識別碼]:[名稱]],2,FALSE),""),"未知的產品識別碼") -> 水壺 | D17: 2012-02-29 | E17: 1290 | F17: NT$1,080 | G17: 952 | H17: 1,390 | I17: =tblSales[[#This Row],[銷售數量 (零售)]]+tblSales[[#This Row],[銷售數量 (批發)]] -> 2,342 | J17: =tblSales[[#This Row],[銷售數量 (零售)]]*tblSales[[#This Row],[零售單價]]+tblSales[[#This Row],[銷售數量 (批發)]]*tblSales[[#This Row],[批發單價*]] -> NT$2,729,280
B18: 5 | C18: =IFERROR(IF(tblSales[[#This Row],[產品識別碼]]<>"",VLOOKUP(tblSales[產品識別碼],tblProducts[[產品識別碼]:[名稱]],2,FALSE),""),"未知的產品識別碼") -> 短褲 | D18: 2012-02-29 | E18: 2940 | F18: NT$2,190 | G18: 530 | H18: 1,452 | I18: =tblSales[[#This Row],[銷售數量 (零售)]]+tblSales[[#This Row],[銷售數量 (批發)]] -> 1,982 | J18: =tblSales[[#This Row],[銷售數量 (零售)]]*tblSales[[#This Row],[零售單價]]+tblSales[[#This Row],[銷售數量 (批發)]]*tblSales[[#This Row],[批發單價*]] -> NT$4,738,080
B19: 1 | C19: =IFERROR(IF(tblSales[[#This Row],[產品識別碼]]<>"",VLOOKUP(tblSales[產品識別碼],tblProducts[[產品識別碼]:[名稱]],2,FALSE),""),"未知的產品識別碼") -> 恤衫 | D19: 2012-03-31 | E19: 1140 | F19: NT$840 | G19: 973 | H19: 1,415 | I19: =tblSales[[#This Row],[銷售數量 (零售)]]+tblSales[[#This Row],[銷售數量 (批發)]] -> 2,388 | J19: =tblSales[[#This Row],[銷售數量 (零售)]]*tblSales[[#This Row],[零售單價]]+tblSales[[#This Row],[銷售數量 (批發)]]*tblSales[[#This Row],[批發單價*]] -> NT$2,297,820
B20: 2 | C20: =IFERROR(IF(tblSales[[#This Row],[產品識別碼]]<>"",VLOOKUP(tblSales[產品識別碼],tblProducts[[產品識別碼]:[名稱]],2,FALSE),""),"未知的產品識別碼") -> 涼鞋 | D20: 2012-03-31 | E20: 1500 | F20: NT$1,080 | G20: 672 | H20: 1,105 | I20: =tblSales[[#This Row],[銷售數量 (零售)]]+tblSales[[#This Row],[銷售數量 (批發)]] -> 1,777 | J20: =tblSales[[#This Row],[銷售數量 (零售)]]*tblSales[[#This Row],[零售單價]]+tblSales[[#This Row],[銷售數量 (批發)]]*tblSales[[#This Row],[批發單價*]] -> NT$2,201,400
B21: 3 | C21: =IFERROR(IF(tblSales[[#This Row],[產品識別碼]]<>"",VLOOKUP(tblSales[產品識別碼],tblProducts[[產品識別碼]:[名稱]],2,FALSE),""),"未知的產品識別碼") -> 雨傘 | D21: 2012-03-31 | E21: 720 | F21: NT$690 | G21: 769 | H21: 1,629 | I21: =tblSales[[#This Row],[銷售數量 (零售)]]+tblSales[[#This Row],[銷售數量 (批發)]] -> 2,398 | J21: =tblSales[[#This Row],[銷售數量 (零售)]]*tblSales[[#This Row],[零售單價]]+tblSales[[#This Row],[銷售數量 (批發)]]*tblSales[[#This Row],[批發單價*]] -> NT$1,677,690
B22: 4 | C22: =IFERROR(IF(tblSales[[#This Row],[產品識別碼]]<>"",VLOOKUP(tblSales[產品識別碼],tblProducts[[產品識別碼]:[名稱]],2,FALSE),""),"未知的產品識別碼") -> 水壺 | D22: 2012-03-31 | E22: 2160 | F22: NT$1,710 | G22: 985 | H22: 1,848 | I22: =tblSales[[#This Row],[銷售數量 (零售)]]+tblSales[[#This Row],[銷售數量 (批發)]] -> 2,833 | J22: =tblSales[[#This Row],[銷售數量 (零售)]]*tblSales[[#This Row],[零售單價]]+tblSales[[#This Row],[銷售數量 (批發)]]*tblSales[[#This Row],[批發單價*]] -> NT$5,287,680
B23: 5 | C23: =IFERROR(IF(tblSales[[#This Row],[產品識別碼]]<>"",VLOOKUP(tblSales[產品識別碼],tblProducts[[產品識別碼]:[名稱]],2,FALSE),""),"未知的產品識別碼") -> 短褲 | D23: 2012-03-31 | E23: 2550 | F23: NT$1,290 | G23: 721 | H23: 1,426 | I23: =tblSales[[#This Row],[銷售數量 (零售)]]+tblSales[[#This Row],[銷售數量 (批發)]] -> 2,147 | J23: =tblSales[[#This Row],[銷售數量 (零售)]]*tblSales[[#This Row],[零售單價]]+tblSales[[#This Row],[銷售數量 (批發)]]*tblSales[[#This Row],[批發單價*]] -> NT$3,678,090
B24: 1 | C24: =IFERROR(IF(tblSales[[#This Row],[產品識別碼]]<>"",VLOOKUP(tblSales[產品識別碼],tblProducts[[產品識別碼]:[名稱]],2,FALSE),""),"未知的產品識別碼") -> 恤衫 | D24: 2012-04-30 | E24: 2730 | F24: NT$1,950 | G24: 603 | H24: 1,226 | I24: =tblSales[[#This Row],[銷售數量 (零售)]]+tblSales[[#This Row],[銷售數量 (批發)]] -> 1,829 | J24: =tblSales[[#This Row],[銷售數量 (零售)]]*tblSales[[#This Row],[零售單價]]+tblSales[[#This Row],[銷售數量 (批發)]]*tblSales[[#This Row],[批發單價*]] -> NT$4,036,890
B25: 2 | C25: =IFERROR(IF(tblSales[[#This Row],[產品識別碼]]<>"",VLOOKUP(tblSales[產品識別碼],tblProducts[[產品識別碼]:[名稱]],2,FALSE),""),"未知的產品識別碼") -> 涼鞋 | D25: 2012-04-30 | E25: 2730 | F25: NT$1,650 | G25: 892 | H25: 1,823 | I25: =tblSales[[#This Row],[銷售數量 (零售)]]+tblSales[[#This Row],[銷售數量 (批發)]] -> 2,715 | J25: =tblSales[[#This Row],[銷售數量 (零售)]]*tblSales[[#This Row],[零售單價]]+tblSales[[#This Row],[銷售數量 (批發)]]*tblSales[[#This Row],[批發單價*]] -> NT$5,443,110
B26: 3 | C26: =IFERROR(IF(tblSales[[#This Row],[產品識別碼]]<>"",VLOOKUP(tblSales[產品識別碼],tblProducts[[產品識別碼]:[名稱]],2,FALSE),""),"未知的產品識別碼") -> 雨傘 | D26: 2012-04-30 | E26: 1260 | F26: NT$1,260 | G26: 611 | H26: 1,181 | I26: =tblSales[[#This Row],[銷售數量 (零售)]]+tblSales[[#This Row],[銷售數量 (批發)]] -> 1,792 | J26: =tblSales[[#This Row],[銷售數量 (零售)]]*tblSales[[#This Row],[零售單價]]+tblSales[[#This Row],[銷售數量 (批發)]]*tblSales[[#This Row],[批發單價*]] -> NT$2,257,920
B27: 4 | C27: =IFERROR(IF(tblSales[[#This Row],[產品識別碼]]<>"",VLOOKUP(tblSales[產品識別碼],tblProducts[[產品識別碼]:[名稱]],2,FALSE),""),"未知的產品識別碼") -> 水壺 | D27: 2012-04-30 | E27: 2550 | F27: NT$1,290 | G27: 530 | H27: 1,039 | I27: =tblSales[[#This Row],[銷售數量 (零售)]]+tblSales[[#This Row],[銷售數量 (批發)]] -> 1,569 | J27: =tblSales[[#This Row],[銷售數量 (零售)]]*tblSales[[#This Row],[零售單價]]+tblSales[[#This Row],[銷售數量 (批發)]]*tblSales[[#This Row],[批發單價*]] -> NT$2,691,810
B28: 5 | C28: =IFERROR(IF(tblSales[[#This Row],[產品識別碼]]<>"",VLOOKUP(tblSales[產品識別碼],tblProducts[[產品識別碼]:[名稱]],2,FALSE),""),"未知的產品識別碼") -> 短褲 | D28: 2012-04-30 | E28: 2460 | F28: NT$2,130 | G28: 716 | H28: 1,249 | I28: =tblSales[[#This Row],[銷售數量 (零售)]]+tblSales[[#This Row],[銷售數量 (批發)]] -> 1,965 | J28: =tblSales[[#This Row],[銷售數量 (零售)]]*tblSales[[#This Row],[零售單價]]+tblSales[[#This Row],[銷售數量 (批發)]]*tblSales[[#This Row],[批發單價*]] -> NT$4,421,730
B29: 1 | C29: =IFERROR(IF(tblSales[[#This Row],[產品識別碼]]<>"",VLOOKUP(tblSales[產品識別碼],tblProducts[[產品識別碼]:[名稱]],2,FALSE),""),"未知的產品識別碼") -> 恤衫 | D29: 2012-05-14 | E29: 1020 | F29: NT$930 | G29: 850 | H29: 1,548 | I29: =tblSales[[#This Row],[銷售數量 (零售)]]+tblSales[[#This Row],[銷售數量 (批發)]] -> 2,398 | J29: =tblSales[[#This Row],[銷售數量 (零售)]]*tblSales[[#This Row],[零售單價]]+tblSales[[#This Row],[銷售數量 (批發)]]*tblSales[[#This Row],[批發單價*]] -> NT$2,306,640
B30: 2 | C30: =IFERROR(IF(tblSales[[#This Row],[產品識別碼]]<>"",VLOOKUP(tblSales[產品識別碼],tblProducts[[產品識別碼]:[名稱]],2,FALSE),""),"未知的產品識別碼") -> 涼鞋 | D30: 2012-05-14 | E30: 1920 | F30: NT$1,200 | G30: 876 | H30: 1,663 | I30: =tblSales[[#This Row],[銷售數量 (零售)]]+tblSales[[#This Row],[銷售數量 (批發)]] -> 2,539 | J30: =tblSales[[#This Row],[銷售數量 (零售)]]*tblSales[[#This Row],[零售單價]]+tblSales[[#This Row],[銷售數量 (批發)]]*tblSales[[#This Row],[批發單價*]] -> NT$3,677,520
B31: 3 | C31: =IFERROR(IF(tblSales[[#This Row],[產品識別碼]]<>"",VLOOKUP(tblSales[產品識別碼],tblProducts[[產品識別碼]:[名稱]],2,FALSE),""),"未知的產品識別碼") -> 雨傘 | D31: 2012-05-14 | E31: 990 | F31: NT$900 | G31: 881 | H31: 1,149 | I31: =tblSales[[#This Row],[銷售數量 (零售)]]+tblSales[[#This Row],[銷售數量 (批發)]] -> 2,030 | J31: =tblSales[[#This Row],[銷售數量 (零售)]]*tblSales[[#This Row],[零售單價]]+tblSales[[#This Row],[銷售數量 (批發)]]*tblSales[[#This Row],[批發單價*]] -> NT$1,906,290
B32: 4 | C32: =IFERROR(IF(tblSales[[#This Row],[產品識別碼]]<>"",VLOOKUP(tblSales[產品識別碼],tblProducts[[產品識別碼]:[名稱]],2,FALSE),""),"未知的產品識別碼") -> 水壺 | D32: 2012-05-14 | E32: 870 | F32: NT$810 | G32: 802 | H32: 1,548 | I32: =tblSales[[#This Row],[銷售數量 (零售)]]+tblSales[[#This Row],[銷售數量 (批發)]] -> 2,350 | J32: =tblSales[[#This Row],[銷售數量 (零售)]]*tblSales[[#This Row],[零售單價]]+tblSales[[#This Row],[銷售數量 (批發)]]*tblSales[[#This Row],[批發單價*]] -> NT$1,951,620
B33: 5 | C33: =IFERROR(IF(tblSales[[#This Row],[產品識別碼]]<>"",VLOOKUP(tblSales[產品識別碼],tblProducts[[產品識別碼]:[名稱]],2,FALSE),""),"未知的產品識別碼") -> 短褲 | D33: 2013-12-11 | E33: 720 | F33: NT$450 | G33: 824 | H33: 1,994 | I33: =tblSales[[#This Row],[銷售數量 (零售)]]+tblSales[[#This Row],[銷售數量 (批發)]] -> 2,818 | J33: =tblSales[[#This Row],[銷售數量 (零售)]]*tblSales[[#This Row],[零售單價]]+tblSales[[#This Row],[銷售數量 (批發)]]*tblSales[[#This Row],[批發單價*]] -> NT$1,490,580

Sheet 價目表
B1: 產品價目表
B3: 冒險工廠
B4: 30126 屏東縣
B5: 水果鄉永大路 4 號
B6: 電話：(123) 555-0100
B7: 傳真：(425) 555-0152
B8: www.adventure-works.com | F8: 上次更新日期：2013/8/15
B10: 產品識別碼 | C10: 名稱 | D10: 描述 | E10: 零售單價 | F10: 批發單價*
B11: 1 | C11: 恤衫 | D11: 我們的 100% 純棉防縮恤衫可讓您涼爽一夏。 | E11: NT$660 | F11: NT$450.00
B12: 2 | C12: 涼鞋 | D12: 穿上我們堅固耐走的膠底涼鞋，即使是最炙熱的沙灘，都能行走自如。 | E12: NT$300 | F12: NT$180.00
B13: 3 | C13: 雨傘 | D13: 我們的超大型海灘傘能夠阻隔 96% 的各種有害紫外線，能幫您遮陽防曬。 | E13: NT$900 | F13: NT$600.00
B14: 4 | C14: 水壺 | D14: 我們的保溫水壺能維持最佳水溫，讓您補充水份，暢快無比。 | E14: NT$210 | F14: NT$150.00
B15: 5 | C15: 短褲 | D15: 我們的速乾尼龍短褲，讓您一從水中出來，就能直接上車。 | E15: NT$450 | F15: NT$240.00
F17: 如需查詢未列在表中的項目，請致電與我們聯繫。
F18: *批發價適用於 12 件以上的數量。

Sheet 價格點樞紐分析表 (hidden)
B1: 價格點樞紐分析表
B2: 此工作表應保持隱藏。對以下樞紐分析表進行任何修改均可能會導致產品銷售報表中的資料錯誤。
B3: 所選產品： | C3: =IF(LEN(B5),B5,"None") -> 涼鞋
B4: 產品名稱 | C4: 零售單價 | D4: 加總 - 總銷售數量
B5: 涼鞋 | C5: NT$1,140 | D5: 2464
C6: NT$1,500 | D6: 1777
C7: NT$1,920 | D7: 2539
C8: NT$2,100 | D8: 1787
C9: NT$2,490 | D9: 1758
C10: NT$2,730 | D10: 2715

Sheet 銷售趨勢樞紐分析表 (hidden)
B1: 銷售趨勢樞紐分析表
B2: 此工作表應保持隱藏。對以下樞紐分析表進行任何修改均可能會導致產品銷售報表中的資料錯誤。
B3: 加總 - 總銷售數量 | C3: 產品名稱
B4: 價格日期 | C4: 涼鞋
B5: 1月 | C5: 1787
B6: 2月 | C6: 4222
B7: 3月 | C7: 1777
B8: 4月 | C8: 2715
B9: 5月 | C9: 2539
